bitfinex/quotes_ETHUSD_20250414
["timestamp","ask_amount","ask_price","bid_price","bid_amount"]
[1744613123639,14.40913552,1626.4,1626.1,3.96937896]
[1744613124001,4.91918,1626.3,1626.1,3.96937896]
[1744613126444,4.91944,1626.2,1626.1,3.15487896]
[1744613126635,4.91918,1626.3,1626.1,3.15487896]
[1744613127022,4.91886,1626.4,1626.1,3.15487896]
[1744613127427,9.83787,1626.4,1626.2,0.7714]
[1744613127627,4.91914,1626.3,1626.2,0.7714]
[1744613127953,4.91914,1626.3,1626.1,3.15487896]
[1744613129143,9.83782,1626.4,1626.1,3.15487896]
[1744613129917,4.91915,1626.3,1626.1,3.15487896]
[1744613130775,4.91888,1626.4,1626.1,3.15487896]
[1744613131083,4.91858,1626.5,1626.2,5.6908]
[1744613132072,4.91885,1626.4,1626.2,0.7714]
[1744613132372,4.91885,1626.4,1626.1,9.45110386]
[1744613132539,4.91885,1626.4,1626.1,10.22250386]
[1744613133470,4.91979,1626.1,1625.8,8.84687896]
[1744613133848,4.91979,1626.1,1625.8,3.92627896]
[1744613134478,4.91947,1626.2,1625.8,8.90838542]
[1744613134678,9.83849,1626.3,1625.9,4.92021]
[1744613134847,9.83849,1626.3,1626.0,3.15487896]
[1744613135036,7.91858,1626.5,1626.2,3.15487896]
[1744613135638,4.91894,1626.4,1626.0,8.84628896]
[1744613135950,4.91936,1626.3,1626.0,3.92627896]
[1744613136293,4.9189,1626.4,1626.1,4.91974]
[1744613136486,4.91883,1626.5,1626.1,9.83933]
[1744613136636,4.91883,1626.5,1626.1,11.22204011]
[1744613136978,5.72265,1626.6,1626.2,8.84556896]
[1744613137678,4.91825,1626.6,1626.2,13.76486896]
[1744613138790,4.91825,1626.6,1626.3,4.91912]
[1744613139080,4.91825,1626.6,1626.2,8.84556896]
[1744613139257,4.91825,1626.6,1626.2,10.36036587]
[1744613139582,4.91825,1626.6,1626.2,15.27966587]
[1744613139786,4.57121552,1626.7,1626.4,8.90057896]
[1744613139962,4.57121552,1626.7,1626.5,9.83695]
[1744613140193,6.1474897,1627.1,1626.8,4.91756]
[1744613140407,5.3226897,1627.1,1626.8,8.07243896]
[1744613140610,5.3226897,1627.1,1626.8,3.15487896]
[1744613140821,4.91713,1627.0,1626.8,3.15487896]
[1744613140979,4.91732,1626.9,1626.6,8.90007896]
[1744613141726,4.91732,1626.9,1626.4,6.251]
[1744613141727,4.91794,1626.7,1626.4,3.98187896]
[1744613141881,0.8248,1626.5,1626.0,3.15487896]
[1744613142081,4.91942,1626.3,1626.0,3.15487896]
[1744613142382,4.91942,1626.3,1626.0,8.07489896]
[1744613142583,4.91936,1626.3,1626.0,3.15487896]
[1744613142784,4.91945,1626.2,1626.0,3.15487896]
[1744613143722,4.91936,1626.3,1626.0,3.15487896]
[1744613144384,4.91888,1626.4,1626.0,4.04508886]
[1744613144711,4.91939,1626.3,1626.0,3.15487896]
[1744613144907,4.91974,1626.1,1625.8,9.40587896]
[1744613145317,9.83857,1626.3,1625.9,4.92024]
[1744613145522,4.91966,1626.2,1625.8,14.32640896]
[1744613145721,9.83936,1626.2,1625.8,14.32640896]
[1744613145933,4.91966,1626.2,1625.8,21.55436086]
[1744613146639,4.91963,1626.2,1625.8,16.63383086]
[1744613146812,4.91977,1626.1,1625.8,11.71331086]
[1744613147403,4.91977,1626.1,1625.7,8.90265896]
[1744613147740,4.92005,1626.0,1625.7,8.90265896]
[1744613147911,9.8397,1626.1,1625.7,8.90265896]
[1744613148098,4.91977,1626.1,1625.7,8.90265896]
[1744613148600,4.91946,1626.2,1625.8,4.92053]
[1744613148815,4.91914,1626.3,1625.9,8.90215896]
[1744613149029,10.6627,1626.4,1626.1,3.15487896]
[1744613149235,4.91886,1626.4,1626.1,8.07461896]
[1744613149407,4.91886,1626.4,1626.1,3.15487896]
[1744613150237,4.91856,1626.5,1626.1,3.15487896]
[1744613150442,4.91894,1626.4,1626.1,3.15487896]
[1744613150629,4.91894,1626.4,1626.1,8.07461896]
[1744613150827,4.91894,1626.4,1626.1,3.15487896]
[1744613151744,9.83796,1626.4,1626.1,3.15487896]
[1744613151923,4.91894,1626.4,1626.1,3.15487896]
[1744613152252,4.91894,1626.4,1626.1,4.45434486]
[1744613152752,4.91927,1626.3,1626.1,3.15487896]
[1744613152945,9.83864,1626.3,1626.1,3.15487896]
[1744613153142,9.83864,1626.3,1625.9,8.90217896]
[1744613153517,4.91945,1626.2,1625.9,3.98187896]
[1744613153754,9.8391,1626.2,1625.9,3.98187896]
[1744613154050,4.91945,1626.2,1625.9,3.98187896]
[1744613154545,4.91975,1626.1,1625.9,3.98187896]
[1744613156135,9.83967,1626.1,1625.9,3.15487896]
[1744613156331,4.92048,1625.9,1625.7,3.94327896]
[1744613157760,4.92065,1625.8,1625.5,2.8118627]
[1744613157965,4.92108,1625.7,1625.5,2.0234627]
[1744613158119,4.92125,1625.6,1625.5,2.0234627]
[1744613158323,7.92125,1625.6,1625.5,2.0234627]
[1744613158558,8.74585,1625.6,1625.5,2.0234627]
[1744613159226,7.92125,1625.6,1625.5,2.0234627]
[1744613160583,5.413188,1625.7,1625.5,2.0234627]
[1744613160757,4.92108,1625.7,1625.5,2.0234627]
[1744613161286,4.57121552,1625.8,1625.5,5.87287193]
[1744613161443,9.49201552,1625.8,1625.5,5.87287193]
[1744613162163,4.92108,1625.7,1625.5,2.0234627]
[1744613162349,9.49195552,1625.8,1625.5,2.0234627]
[1744613162690,4.57121552,1625.8,1625.5,2.0234627]
[1744613163054,9.49208552,1625.8,1625.5,2.0234627]
[1744613163592,4.57121552,1625.8,1625.5,7.7333227]
[1744613163889,14.41272552,1625.8,1625.5,2.8118627]
[1744613164469,9.49186552,1625.8,1625.5,2.8118627]
[1744613164678,9.49186552,1625.8,1625.5,7.7334127]
[1744613165206,9.49186552,1625.8,1625.5,2.8118627]
[1744613165413,14.41274552,1625.8,1625.5,2.0234627]
[1744613165575,14.41271552,1625.8,1625.5,2.0234627]
[1744613165773,4.57121552,1625.8,1625.6,0.7884]
[1744613166714,4.92046,1625.9,1625.6,0.7884]
[1744613166889,7.92005,1626.0,1625.7,4.92095]
[1744613167086,11.99316,1626.2,1625.7,4.98245958]
[1744613167284,3.0,1626.1,1625.8,4.92054]
[1744613167701,12.83971,1626.1,1625.7,4.92095]
[1744613167924,7.91977,1626.1,1625.7,6.31022762]
[1744613168104,7.91977,1626.1,1625.7,11.23101762]
[1744613168308,9.49038552,1626.3,1625.9,5.73189]
[1744613168482,9.49038552,1626.3,1625.9,10.65209]
[1744613168681,9.49038552,1626.3,1625.9,5.73189]
[1744613168878,0.7727,1626.2,1625.7,0.8117]
[1744613169113,4.92066,1625.8,1625.5,11.01885894]
[1744613169311,9.8411,1625.9,1625.5,7.7566827]
[1744613169497,4.9207,1625.8,1625.5,7.7566827]
[1744613170920,4.9207,1625.8,1625.5,2.8351627]
[1744613171720,9.84154,1625.8,1625.5,2.8351627]
[1744613171894,10.902964,1625.8,1625.5,2.8351627]
[1744613172411,4.9207,1625.8,1625.5,2.8351627]
[1744613173320,4.92009,1626.0,1625.5,2.8351627]
[1744613173505,11.94154,1626.1,1625.7,4.92085]
[1744613174221,11.94154,1626.1,1625.7,9.84165]
[1744613174521,11.94154,1626.1,1625.7,4.9208]
[1744613174817,16.86154,1626.1,1625.7,4.9208]
[1744613174987,4.91984,1626.1,1625.7,4.9208]
[1744613175204,4.92014,1626.0,1625.6,4.92122]
[1744613175409,13.26308552,1626.3,1625.6,4.92122]
[1744613175410,5.412544,1625.9,1625.6,0.8117]
[1744613176545,5.412544,1625.9,1625.6,5.73295]
[1744613176746,10.61294,1626.0,1625.6,5.73295]
[1744613177851,4.92041,1625.9,1625.6,0.8117]
[1744613178037,4.92082,1625.8,1625.5,2.0234627]
[1744613178936,9.84165,1625.8,1625.5,2.0234627]
[1744613179118,4.92082,1625.8,1625.5,2.0234627]
[1744613179315,9.84092,1625.9,1625.5,6.9448927]
[1744613179955,4.92039,1625.9,1625.5,6.9448927]
[1744613180159,4.92039,1625.9,1625.5,8.21888552]
[1744613180363,9.84091,1625.9,1625.5,8.21888552]
[1744613181058,4.92039,1625.9,1625.6,5.73285]
[1744613181423,4.92039,1625.9,1625.6,0.8117]
[1744613183657,9.84094,1625.9,1625.6,0.8117]
[1744613184453,4.92039,1625.9,1625.6,0.8117]
[1744613184656,4.92066,1625.8,1625.6,0.8117]
[1744613185260,4.92039,1625.9,1625.6,0.8117]
[1744613185471,4.92005,1626.0,1625.6,7.443522]
[1744613185675,4.92005,1626.0,1625.7,8.07558444]
[1744613185983,9.49039552,1626.3,1625.9,8.84968444]
[1744613186283,4.57121552,1626.3,1626.0,4.91992]
[1744613186490,4.57121552,1626.3,1626.1,3.92947444]
[1744613186643,9.83718,1626.5,1626.1,8.84918444]
[1744613186837,4.91887,1626.4,1626.1,3.92947444]
[1744613187755,9.8379,1626.4,1626.1,3.92947444]
[1744613187954,4.91921,1626.3,1626.1,3.92947444]
[1744613188166,9.83864,1626.3,1626.1,0.7748]
[1744613189582,4.91944,1626.2,1625.9,3.15467444]
[1744613189880,4.91985,1626.1,1625.9,0.7748]
[1744613191044,4.92004,1626.0,1625.7,3.92947444]
[1744613191378,4.92004,1626.0,1625.7,5.61019908]
[1744613192477,4.92004,1626.0,1625.7,10.53110908]
[1744613192685,4.91974,1626.1,1625.7,10.53100908]
[1744613193373,4.91914,1626.3,1625.9,3.15467444]
[1744613193556,4.91888,1626.4,1626.1,8.07438444]
[1744613193762,4.91888,1626.4,1626.1,3.15467444]
[1744613193763,9.83789,1626.4,1626.1,3.15467444]
[1744613194069,4.91888,1626.4,1626.1,3.15467444]
[1744613194794,9.83791,1626.4,1626.1,3.15467444]
[1744613195578,4.91921,1626.3,1626.1,3.15467444]
[1744613196243,9.83782,1626.4,1626.1,3.15467444]
[1744613196443,4.91888,1626.4,1626.1,3.15467444]
[1744613196688,9.83789,1626.4,1626.1,3.15467444]
[1744613196989,4.91888,1626.4,1626.1,3.15467444]
[1744613197156,9.8379,1626.4,1626.1,3.15467444]
[1744613198450,4.91888,1626.4,1626.1,3.15467444]
[1744613198654,4.91888,1626.4,1626.2,0.7773]
[1744613199375,4.91743,1626.9,1626.4,4.91879]
[1744613199579,4.91743,1626.9,1626.6,3.15467444]
[1744613199781,4.91823,1626.6,1626.5,0.7773]
[1744613199980,9.83666,1626.6,1626.4,9.40067444]
[1744613200315,9.83668,1626.6,1626.4,10.17797444]
[1744613200647,4.91823,1626.6,1626.4,10.17797444]
[1744613200854,9.83664,1626.6,1626.4,10.17797444]
[1744613201052,4.91853,1626.5,1626.4,10.17797444]
[1744613201289,4.91823,1626.6,1626.4,10.17797444]
[1744613203293,9.83482,1626.9,1626.6,0.8197]
[1744613203455,4.91735,1626.9,1626.6,3.97437444]
[1744613204805,4.91788,1626.8,1626.6,3.97437444]
[1744613205006,4.91793,1626.7,1626.4,3.97437444]
[1744613205179,9.83677,1626.6,1626.4,3.97437444]
[1744613206308,4.91834,1626.6,1626.4,3.97437444]
[1744613207916,4.91793,1626.7,1626.4,3.97437444]
[1744613208410,9.83606,1626.7,1626.4,3.97437444]
[1744613210000,4.91764,1626.8,1626.4,3.97437444]
[1744613210169,4.91764,1626.8,1626.4,9.91497188]
[1744613210373,4.91798,1626.7,1626.4,9.91497188]
[1744613211810,9.83609,1626.7,1626.4,4.99631188]
[1744613212108,4.91798,1626.7,1626.4,4.99631188]
[1744613215710,4.91798,1626.7,1626.4,5.0577908]
[1744613215914,4.91766,1626.8,1626.4,14.8952708]
[1744613216079,4.91766,1626.8,1626.4,9.91499188]
[1744613216412,9.83546,1626.8,1626.4,9.9764707]
[1744613216713,4.91799,1626.7,1626.4,9.91499188]
[1744613216870,4.91737,1626.9,1626.7,0.7517]
[1744613217488,4.91703,1627.0,1626.7,0.7517]
[1744613218187,9.83427,1627.0,1626.7,0.7517]
[1744613218589,4.91762,1626.8,1626.6,3.15467444]
[1744613218788,4.91735,1626.9,1626.6,3.15467444]
[1744613218789,4.91735,1626.9,1626.6,4.06175459]
[1744613219784,4.91735,1626.9,1626.6,10.30275459]
[1744613220424,4.91735,1626.9,1626.6,15.22097459]
[1744613220791,9.83423,1627.0,1626.6,15.22097459]
[1744613221120,5.3225697,1627.1,1626.8,3.15467444]
[1744613221319,5.3225697,1627.1,1626.8,4.03708388]
[1744613221482,4.91705,1627.0,1626.8,4.03708388]
[1744613221684,5.3225697,1627.1,1626.8,4.03708388]
[1744613222182,10.2394697,1627.1,1626.8,4.03708388]
[1744613222378,0.4058297,1627.1,1626.8,8.95451388]
[1744613222620,0.4058297,1627.1,1627.0,0.7761]
[1744613222843,5.3226997,1627.1,1626.8,0.7761]
[1744613223023,0.4058297,1627.1,1626.9,3.15467444]
[1744613223236,0.4058297,1627.1,1627.0,0.7761]
[1744613223385,0.4058297,1627.1,1627.0,5.69312]
[1744613223587,0.4058297,1627.1,1627.0,7.06961644]
[1744613224327,0.4058297,1627.1,1627.0,2.15259644]
[1744613224500,5.3226997,1627.1,1626.9,0.7761]
[1744613224692,10.2396797,1627.1,1626.9,6.241]
[1744613224890,10.2396797,1627.1,1626.7,10.17077444]
[1744613224891,4.91739,1626.9,1626.7,10.17077444]
[1744613225336,5.3225697,1627.1,1626.7,10.17077444]
[1744613225626,4.91703,1627.0,1626.7,15.08853444]
[1744613225923,4.91703,1627.0,1626.7,10.17077444]
[1744613226639,9.83424,1627.0,1626.7,10.17077444]
[1744613226937,9.83424,1627.0,1626.7,9.39467444]
[1744613228047,4.91703,1627.0,1626.7,9.39467444]
[1744613228205,9.83424,1627.0,1626.7,9.39467444]
[1744613228405,4.9174,1626.9,1626.7,9.39467444]
[1744613228907,9.83497,1626.9,1626.7,6.24]
[1744613229108,10.64747,1626.9,1626.7,6.24]
[1744613230939,5.7299,1626.9,1626.7,6.24]
[1744613231239,0.8125,1626.9,1626.7,6.24]
[1744613231428,9.83427,1627.0,1626.7,9.39467444]
[1744613231624,6.1351797,1627.1,1626.7,14.31246444]
[1744613231945,4.91704,1627.0,1626.7,14.31246444]
[1744613232641,0.4058297,1627.1,1626.9,0.7567]
[1744613232843,0.4058297,1627.1,1626.9,3.91137444]
[1744613233339,0.4058297,1627.1,1626.9,8.82858444]
[1744613234369,0.4058297,1627.1,1626.9,3.91137444]
[1744613234544,5.3225997,1627.1,1626.9,3.91137444]
[1744613234743,10.2395097,1627.1,1626.9,0.7567]
[1744613234954,4.91702,1627.0,1626.7,15.06929444]
[1744613235265,5.3225997,1627.1,1626.8,1.50692944]
[1744613235565,5.3225997,1627.1,1626.7,15.06929444]
[1744613235725,5.3225997,1627.1,1626.7,19.98705444]
[1744613235929,5.3225997,1627.1,1626.8,4.91762]
[1744613236368,0.17198392,1627.0,1626.8,4.91762]
[1744613236668,10.2395297,1627.1,1626.7,15.06913444]
[1744613236866,5.3225997,1627.1,1626.7,21.5845859]
[1744613237875,10.2395497,1627.1,1626.7,16.6667559]
[1744613238169,4.91705,1627.0,1626.7,16.6667559]
[1744613240561,9.83424,1627.0,1626.7,10.15137444]
[1744613240766,5.72987,1626.9,1626.7,3.15467444]
[1744613241574,5.72987,1626.9,1626.3,8.07365444]
[1744613241575,0.8125,1626.9,1626.3,8.07365444]
[1744613241781,9.83623,1626.7,1626.4,6.237]
[1744613241940,4.91825,1626.6,1626.4,6.237]
[1744613242137,4.91825,1626.6,1626.4,7.25183744]
[1744613242738,4.91793,1626.7,1626.4,7.25183744]
[1744613243083,4.91793,1626.7,1626.4,12.17063744]
[1744613243287,4.91793,1626.7,1626.4,7.25183744]
[1744613243579,9.83605,1626.7,1626.4,7.25183744]
[1744613243879,4.91793,1626.7,1626.4,7.25183744]
[1744613244287,4.91765,1626.8,1626.5,3.15467444]
[1744613244981,9.83545,1626.8,1626.5,3.15467444]
[1744613245288,4.918,1626.7,1626.5,3.15467444]
[1744613246280,4.91767,1626.8,1626.5,3.15467444]
[1744613246482,9.8343,1627.0,1626.6,5.7381]
[1744613246690,6.0734797,1627.1,1626.7,3.15467444]
[1744613246846,5.3225797,1627.1,1626.7,8.07234444]
[1744613247046,10.2394997,1627.1,1626.7,8.07234444]
[1744613249494,5.3225797,1627.1,1626.7,9.45339888]
[1744613249793,10.2394997,1627.1,1626.7,9.51486535]
[1744613250297,10.2394997,1627.1,1626.7,9.45339888]
[1744613250456,0.7509,1627.0,1626.7,3.15467444]
[1744613250668,9.83547,1626.8,1626.5,3.15467444]
[1744613250888,4.91762,1626.8,1626.5,3.15467444]
[1744613251395,9.83545,1626.8,1626.5,3.15467444]
[1744613252467,4.91762,1626.8,1626.5,3.15467444]
[1744613254194,4.91736,1626.9,1626.5,8.07308444]
[1744613254366,9.83488,1626.9,1626.5,10.13956505]
[1744613256363,9.83488,1626.9,1626.5,10.07808988]
[1744613257198,4.91776,1626.8,1626.5,10.07808988]
[1744613259097,4.91776,1626.8,1626.5,5.15967988]
[1744613259255,4.91811,1626.7,1626.4,7.058]
[1744613259956,5.67346,1626.8,1626.4,11.97683]
[1744613260161,10.59127,1626.8,1626.4,11.97683]
[1744613260502,4.91795,1626.7,1626.4,11.97683]
[1744613260679,4.91795,1626.7,1626.4,13.98188944]
[1744613261397,9.83605,1626.7,1626.4,9.06305944]
[1744613261586,4.91795,1626.7,1626.4,9.06305944]
[1744613261784,4.91795,1626.7,1626.4,7.058]
[1744613263292,4.91795,1626.7,1626.4,11.97679]
[1744613264603,4.91853,1626.5,1626.4,0.82]
[1744613264897,4.91853,1626.5,1626.1,16.85132]
[1744613264898,5.67433,1626.5,1626.1,16.85132]
[1744613265205,5.67433,1626.5,1626.2,4.91941]
[1744613265420,10.59311,1626.5,1626.1,11.9317]
[1744613265701,4.91884,1626.4,1626.1,13.1570596]
[1744613265905,5.67463,1626.4,1625.9,0.7741]
[1744613266105,4.9199,1626.1,1625.8,2.75017057]
[1744613266287,9.83988,1626.1,1625.8,2.75017057]
[1744613266489,4.92005,1626.0,1625.8,2.75017057]
[1744613268201,4.9199,1626.1,1625.8,2.75017057]
[1744613269403,9.83984,1626.1,1625.8,2.75017057]
[1744613272429,4.91948,1626.2,1625.9,8.07490444]
[1744613272722,9.8398,1626.1,1625.9,3.15467444]
[1744613272933,4.91985,1626.1,1625.9,3.15467444]
[1744613276422,9.83979,1626.1,1625.9,3.15467444]
[1744613278733,4.91985,1626.1,1625.9,3.15467444]
[1744613279838,4.91949,1626.2,1625.9,9.15733194]
[1744613280149,0.7675,1626.6,1626.1,3.15467444]
[1744613280473,9.83744,1626.5,1626.1,8.07428444]
[1744613280742,5.6869,1626.3,1626.0,6.996]
[1744613281239,4.91958,1626.2,1626.0,6.996]
[1744613282134,4.91958,1626.2,1626.0,8.01106744]
[1744613282640,9.83919,1626.2,1626.0,8.01106744]
[1744613283143,9.83919,1626.2,1626.0,7.25206744]
[1744613283302,4.91974,1626.1,1626.0,6.237]
[1744613283620,4.91974,1626.1,1625.8,7.65558057]
[1744613284029,4.91974,1626.1,1625.8,2.73507057]
[1744613286050,9.83969,1626.1,1625.8,2.73507057]
[1744613286245,4.92035,1625.9,1625.8,1.97607057]
[1744613287505,5.68785,1625.9,1625.8,1.97607057]
[1744613288719,9.23785,1625.9,1625.8,1.97607057]
[1744613288908,9.23785,1625.9,1625.2,6.996]
[1744613288909,4.92211,1625.4,1625.2,6.996]
[1744613289224,4.92211,1625.4,1625.0,0.759]
[1744613289225,4.92232,1625.3,1625.0,0.759]
[1744613289437,5.68982,1625.3,1625.0,0.759]
[1744613289710,10.61224,1625.3,1625.0,0.759]
[1744613289909,4.92249,1625.2,1625.0,0.759]
[1744613290305,5.68982,1625.3,1625.0,0.759]
[1744613290535,4.92189,1625.4,1625.0,7.18944244]
[1744613291650,9.84395,1625.4,1625.0,7.18944244]
[1744613292069,4.92189,1625.4,1625.0,7.18944244]
[1744613292367,4.92217,1625.3,1625.0,7.18944244]
[1744613292969,4.92189,1625.4,1625.0,7.18944244]
[1744613293467,5.68846,1625.7,1625.3,8.07681444]
[1744613293766,4.92143,1625.6,1625.3,3.15467444]
[1744613294283,4.92143,1625.6,1625.3,3.21619465]
[1744613294432,4.92143,1625.6,1625.3,3.15467444]
[1744613294844,10.60966,1625.7,1625.3,8.13824464]
[1744613295056,10.60966,1625.7,1625.3,9.5202131]
[1744613295576,4.92136,1625.6,1625.3,3.15467444]
[1744613295787,9.84282,1625.6,1625.3,3.15467444]
[1744613295945,4.92136,1625.6,1625.3,3.15467444]
[1744613297062,4.92136,1625.6,1625.3,8.07673444]
[1744613297265,4.92042,1625.9,1625.5,3.15467444]
[1744613297459,5.68735,1626.1,1625.7,8.83447444]
[1744613297782,4.91985,1626.1,1625.7,8.83447444]
[1744613297984,9.83978,1626.1,1625.7,8.83447444]
[1744613298485,9.83978,1626.1,1625.7,13.75529444]
[1744613298486,4.91985,1626.1,1625.7,13.75529444]
[1744613298782,4.91985,1626.1,1625.8,4.92064]
[1744613298984,4.57121552,1626.2,1626.0,0.759]
[1744613299389,4.57121552,1626.2,1626.0,5.67903]
[1744613299786,4.91889,1626.4,1626.0,10.66044723]
[1744613300092,9.83874,1626.3,1626.0,0.759]
[1744613300291,4.91957,1626.2,1626.0,0.759]
[1744613300998,4.91957,1626.2,1625.9,3.15467444]
[1744613301296,4.91957,1626.2,1625.8,5.67949]
[1744613301804,4.91976,1626.1,1625.8,5.67949]
[1744613303407,4.91976,1626.1,1625.8,0.759]
[1744613303785,4.92007,1626.0,1625.8,0.759]
[1744613305934,4.92109,1625.7,1625.5,0.8145]
[1744613306092,4.92109,1625.7,1625.3,13.81327444]
[1744613306704,4.92109,1625.7,1625.3,8.89120444]
[1744613306908,4.92137,1625.6,1625.3,3.96917444]
[1744613307129,4.92156,1625.5,1625.3,3.96917444]
[1744613307433,4.92137,1625.6,1625.3,3.96917444]
[1744613308431,4.92137,1625.6,1625.3,8.89131444]
[1744613308632,4.921,1625.7,1625.3,13.81345444]
[1744613309011,4.92063,1625.9,1625.6,4.92118]
[1744613309353,8.73326,1626.0,1625.6,5.73568]
[1744613309354,10.65356,1626.0,1625.6,5.73568]
[1744613309527,4.92006,1626.0,1625.6,10.65681]
[1744613309729,4.57121552,1626.1,1625.6,0.8145]
[1744613310031,4.9204,1625.9,1625.6,5.73565]
[1744613310849,4.9204,1625.9,1625.6,0.8145]
[1744613311010,5.41244,1625.9,1625.6,0.8145]
[1744613311509,4.92066,1625.8,1625.6,0.8145]
[1744613311921,4.9204,1625.9,1625.6,0.8145]
[1744613312149,4.92008,1626.0,1625.6,5.73562]
[1744613312349,4.92008,1626.0,1625.6,10.65674]
[1744613312646,4.92008,1626.0,1625.6,12.03788144]
[1744613312824,4.92008,1626.0,1625.7,4.92095]
[1744613313350,14.41091552,1626.1,1625.7,4.92095]
[1744613314156,4.92006,1626.0,1625.6,0.8145]
[1744613314454,4.92106,1625.7,1625.5,0.8145]
[1744613314649,4.92106,1625.7,1625.4,0.8145]
[1744613315942,9.84219,1625.7,1625.4,0.8145]
[1744613316312,4.92106,1625.7,1625.4,0.8145]
[1744613316756,9.84219,1625.7,1625.4,0.8145]
[1744613317354,4.92127,1625.6,1625.4,0.8145]
[1744613318050,4.92106,1625.7,1625.4,0.8145]
[1744613318415,4.92126,1625.6,1625.4,0.8145]
[1744613319342,4.92106,1625.7,1625.4,0.8145]
[1744613320260,4.92129,1625.6,1625.4,0.8145]
[1744613321071,4.92106,1625.7,1625.4,0.8145]
[1744613321240,4.92069,1625.8,1625.4,11.73005619]
[1744613321426,9.84151,1625.8,1625.4,9.96294063]
[1744613322057,4.92096,1625.7,1625.4,9.96294063]
[1744613322469,4.92096,1625.7,1625.4,0.8145]
[1744613322769,4.92096,1625.7,1625.3,5.69351]
[1744613322948,4.9218,1625.5,1625.2,0.7887]
[1744613323131,4.9218,1625.5,1625.2,5.71115]
[1744613323331,4.92098,1625.7,1625.3,4.92202]
[1744613324032,0.570378,1625.7,1625.2,5.71115]
[1744613324235,4.92167,1625.5,1625.2,5.71115]
[1744613324435,4.92167,1625.5,1625.2,0.7887]
[1744613325172,0.7828,1625.5,1625.1,9.14767373]
[1744613325472,4.92246,1625.3,1625.1,2.12497373]
[1744613325692,4.92247,1625.2,1625.1,2.12497373]
[1744613326156,6.689763,1625.2,1625.1,2.12497373]
[1744613326351,5.906963,1625.2,1625.1,2.12497373]
[1744613326556,0.7828,1625.2,1625.1,2.12497373]
[1744613326865,5.70527,1625.2,1625.1,2.12497373]
[1744613327890,4.92247,1625.2,1625.1,2.12497373]
[1744613332508,4.92229,1625.3,1625.1,2.12497373]
[1744613333287,9.84463,1625.3,1625.1,2.12497373]
[1744613333686,4.92187,1625.4,1625.1,2.12497373]
[1744613334113,9.84391,1625.4,1625.1,2.12497373]
[1744613334610,9.84392,1625.4,1625.1,2.9086371]
[1744613334810,4.92187,1625.4,1625.1,2.9086371]
[1744613335210,9.84391,1625.4,1625.1,2.9086371]
[1744613335519,9.84392,1625.4,1625.1,2.9086371]
[1744613335840,4.92218,1625.3,1625.1,2.9086371]
[1744613336046,5.75047,1625.6,1625.2,0.8051]
[1744613336218,11.98496,1625.8,1625.3,8.07666444]
[1744613336410,10.67081,1625.8,1625.4,6.59598313]
[1744613336612,10.67081,1625.8,1625.4,6.53446644]
[1744613336934,4.921,1625.7,1625.4,1.61276644]
[1744613337110,4.921,1625.7,1625.4,0.8051]
[1744613337312,0.8292,1625.8,1625.4,0.8051]
[1744613337313,4.92139,1625.6,1625.4,0.8051]
[1744613337841,4.92139,1625.6,1625.3,3.15467444]
[1744613338144,4.92139,1625.6,1625.3,3.95977444]
[1744613338844,4.92157,1625.5,1625.3,3.95977444]
[1744613339843,4.92139,1625.6,1625.3,3.95977444]
[1744613340011,4.92139,1625.6,1625.3,5.34638207]
[1744613340823,9.84288,1625.6,1625.3,5.34638207]
[1744613341025,4.92139,1625.6,1625.3,5.34638207]
[1744613341325,4.921,1625.7,1625.4,4.92182]
[1744613341723,4.92065,1625.8,1625.4,9.84358]
[1744613342050,10.32050552,1626.0,1625.4,1.51899621]
[1744613342355,4.92128,1625.6,1625.3,3.95977444]
[1744613342558,4.92128,1625.6,1625.3,8.88188444]
[1744613345966,9.84271,1625.6,1625.3,3.95977444]
[1744613346165,4.92128,1625.6,1625.3,3.15467444]
[1744613347267,4.92158,1625.5,1625.3,3.15467444]
[1744613347860,9.84281,1625.6,1625.3,3.15467444]
[1744613348035,4.92128,1625.6,1625.3,3.15467444]
[1744613348239,5.75018,1625.7,1625.3,9.51863392]
[1744613348441,4.92068,1625.8,1625.4,10.64859]
[1744613348647,4.92098,1625.7,1625.4,0.8051]
[1744613349165,4.92098,1625.7,1625.4,5.72695]
[1744613349372,4.92068,1625.8,1625.4,5.72684]
[1744613349669,4.92096,1625.7,1625.4,5.72684]
[1744613349828,4.92096,1625.7,1625.4,7.24524529]
[1744613350165,4.92095,1625.7,1625.4,7.24521529]
[1744613350981,4.92068,1625.8,1625.4,7.24521529]
[1744613351183,9.84159,1625.8,1625.5,0.06151312]
[1744613351361,9.84151,1625.8,1625.4,7.24521529]
[1744613351683,9.84159,1625.8,1625.4,7.24521529]
[1744613352385,4.92068,1625.8,1625.4,7.24521529]
[1744613352591,5.68919,1626.1,1625.7,5.73234]
[1744613352888,4.91954,1626.2,1625.8,9.84092]
[1744613353090,4.92016,1626.0,1625.7,0.8114]
[1744613353986,4.92038,1625.9,1625.7,0.8114]
[1744613354182,4.92016,1626.0,1625.7,5.73234]
[1744613354584,4.9195,1626.2,1625.7,1.93823505]
[1744613354790,9.83911,1626.2,1625.8,4.92051]
[1744613355165,4.9195,1626.2,1625.8,4.92051]
[1744613355369,9.83914,1626.2,1625.8,4.92051]
[1744613355556,4.91999,1626.1,1625.7,5.73232]
[1744613355863,4.91999,1626.1,1625.7,10.71464375]
[1744613356058,9.83992,1626.1,1625.7,8.94839819]
[1744613356475,4.91992,1626.1,1625.7,8.88688444]
[1744613356675,4.91992,1626.1,1625.7,13.86921849]
[1744613356876,4.91992,1626.1,1625.7,8.88688444]
[1744613357076,4.91992,1626.1,1625.7,13.80769444]
[1744613357280,4.91992,1626.1,1625.7,10.26769488]
[1744613357477,4.91923,1626.3,1625.9,8.88627444]
[1744613357653,4.91923,1626.3,1625.9,8.94777164]
[1744613357853,4.91923,1626.3,1626.0,0.8114]
[1744613358162,4.91886,1626.4,1626.2,0.8114]
[1744613358369,4.91936,1626.3,1626.1,0.8114]
[1744613358665,4.91936,1626.3,1626.0,0.8114]
[1744613358666,4.91946,1626.2,1626.0,0.8114]
[1744613359076,4.91974,1626.1,1625.9,6.231]